bitfinex/quotes_BTCUSD_20241211
["timestamp","ask_amount","ask_price","bid_price","bid_amount"]
[1733887992074,0.35563,97262.0,97261.0,0.0356326]
[1733887992304,0.35563,97262.0,97261.0,0.003]
[1733887992535,0.35563,97262.0,97261.0,0.0356326]
[1733887993146,0.36596518,97262.0,97261.0,0.0356326]
[1733887993348,0.36596518,97262.0,97261.0,0.0376326]
[1733887994112,0.36596518,97262.0,97261.0,0.0326326]
[1733887994527,0.15,97261.0,97259.0,0.0326326]
[1733887994740,0.15,97261.0,97260.0,0.0326326]
[1733887997553,0.15,97261.0,97251.0,0.00056507]
[1733887997554,0.01033518,97262.0,97261.0,0.0326326]
[1733887997767,0.205618,97268.0,97261.0,0.0326326]
[1733887997768,0.205626,97264.0,97261.0,0.0326326]
[1733887997981,0.205626,97264.0,97251.0,0.00056507]
[1733887997982,0.205626,97264.0,97263.0,0.0326326]
[1733888000310,0.205626,97264.0,97263.0,0.1080326]
[1733888000518,0.205626,97264.0,97263.0,0.1100326]
[1733888000862,0.15,97279.0,97263.0,0.1100326]
[1733888000863,0.15,97279.0,97267.0,0.0326326]
[1733888001063,0.0819,97303.0,97279.0,0.0326326]
[1733888001958,0.00311937,97297.0,97289.0,0.0326326]
[1733888002179,0.205569,97291.0,97289.0,0.0326326]
[1733888002582,0.205569,97291.0,97290.0,0.0326326]
[1733888003194,0.205569,97291.0,97290.0,0.03279767]
[1733888004438,0.205569,97291.0,97290.0,0.03479767]
[1733888004590,0.205569,97291.0,97290.0,0.03579767]
[1733888005447,0.205551,97299.0,97298.0,0.0326326]
[1733888005649,0.0001718,97300.0,97299.0,0.0326326]
[1733888005868,0.0001718,97300.0,97299.0,0.1080326]
[1733888005869,0.0105674,97300.0,97299.0,0.1080326]
[1733888006202,0.0001718,97300.0,97299.0,0.1080326]
[1733888007025,0.0021718,97300.0,97299.0,0.1080326]
[1733888007458,0.0001718,97300.0,97299.0,0.1080326]
[1733888007658,0.0011718,97300.0,97299.0,0.1130326]
[1733888008509,0.0011718,97300.0,97299.0,0.21835784]
[1733888008949,0.0011718,97300.0,97299.0,0.22135784]
[1733888019156,0.0011718,97300.0,97299.0,0.1160326]
[1733888019356,0.0011718,97300.0,97299.0,0.0406326]
[1733888020158,0.2067208,97300.0,97299.0,0.008]
[1733888020338,0.2067208,97300.0,97299.0,0.0406326]
[1733888020752,0.0011718,97300.0,97299.0,0.0406326]
[1733888022419,0.0011718,97300.0,97299.0,0.008]
[1733888022647,0.0011718,97300.0,97299.0,0.0406326]
[1733888023779,0.0011718,97300.0,97299.0,0.008]
[1733888023780,0.1511718,97300.0,97299.0,0.008]
[1733888023982,0.2320718,97300.0,97299.0,0.008]
[1733888025152,0.2310718,97300.0,97299.0,0.003]
[1733888025348,0.2320718,97300.0,97299.0,0.003]
[1733888025816,0.15,97298.0,97297.0,0.0326326]
[1733888026806,0.15,97299.0,97297.0,0.0326326]
[1733888027012,0.356554,97298.0,97297.0,0.0326326]
[1733888027614,0.355554,97298.0,97297.0,0.0326326]
[1733888028262,0.001,97298.0,97297.0,0.0326326]
[1733888029691,0.0001718,97300.0,97299.0,0.0326326]
[1733888031241,0.0001718,97300.0,97299.0,0.0102126]
[1733888032063,0.0001718,97300.0,97299.0,0.0162126]
[1733888032064,0.0011718,97300.0,97299.0,0.0162126]
[1733888032259,0.0001718,97300.0,97299.0,0.0102126]
[1733888032672,0.0011718,97300.0,97299.0,0.0162126]
[1733888032875,0.0001718,97300.0,97299.0,0.0132126]
[1733888033092,0.0011718,97300.0,97299.0,0.0212126]
[1733888033441,0.0011718,97300.0,97299.0,0.0182126]
[1733888033838,0.0011718,97300.0,97299.0,0.0222126]
[1733888034200,0.0011718,97300.0,97299.0,0.0182126]
[1733888034655,0.0001718,97300.0,97299.0,0.0102126]
[1733888034802,0.0001718,97300.0,97299.0,0.0152126]
[1733888035011,0.0001718,97300.0,97299.0,0.0222126]
[1733888035012,0.0011718,97300.0,97299.0,0.0222126]
[1733888035834,0.0001718,97300.0,97299.0,0.0152126]
[1733888036258,0.0011718,97300.0,97299.0,0.0242126]
[1733888037825,0.0011718,97300.0,97299.0,0.12953784]
[1733888039443,0.0011718,97300.0,97299.0,0.27953784]
[1733888040001,0.0011718,97300.0,97299.0,0.42953784]
[1733888040219,0.0011718,97300.0,97299.0,0.51213784]
[1733888041771,0.01017213,97316.0,97315.0,0.0102126]
[1733888041772,0.00959392,97316.0,97315.0,0.0102126]
[1733888041937,0.205494,97327.0,97326.0,0.0102126]
[1733888043031,0.09299798,97327.0,97324.0,0.0102126]
[1733888043150,0.15,97326.0,97324.0,0.0102126]
[1733888043971,0.560988,97326.0,97324.0,0.0102126]
[1733888044438,0.206494,97326.0,97325.0,0.0102126]
[1733888045199,0.209494,97326.0,97325.0,0.0102126]
[1733888045296,0.206494,97326.0,97325.0,0.0102126]
[1733888045953,0.205494,97326.0,97325.0,0.0102126]
[1733888052171,0.01064769,97327.0,97321.0,0.0102126]
[1733888052172,0.205503,97322.0,97321.0,0.0102126]
[1733888052406,0.01064769,97327.0,97325.0,0.0102126]
[1733888052613,0.003,97326.0,97325.0,0.0102126]
[1733888052802,0.01064769,97327.0,97325.0,0.0102126]
[1733888052927,0.355494,97326.0,97325.0,0.0102126]
[1733888053534,0.355497,97325.0,97324.0,0.0102126]
[1733888054876,0.355497,97325.0,97324.0,0.0112126]
[1733888059734,0.205497,97325.0,97324.0,0.0112126]
[1733888062929,0.01064769,97327.0,97326.0,0.0102126]
[1733888067778,0.20552,97314.0,97313.0,0.0102126]
[1733888068113,0.205515,97317.0,97316.0,0.0102126]
[1733888068748,0.205509,97320.0,97316.0,0.0102126]
[1733888069135,0.00154971,97327.0,97317.0,0.1211]
[1733888069382,0.00154971,97327.0,97326.0,0.0102126]
[1733888069555,0.00054971,97327.0,97326.0,0.0102126]
[1733888070175,0.00054971,97327.0,97326.0,0.0855126]
[1733888070884,0.00054971,97327.0,97326.0,0.0875126]
[1733888070977,0.00054971,97327.0,97326.0,0.19283784]
[1733888071186,0.00054971,97327.0,97326.0,0.23763784]
[1733888071584,0.00054971,97327.0,97326.0,0.38763784]
[1733888071764,0.00054971,97327.0,97326.0,0.38663784]
[1733888071963,0.00054971,97327.0,97326.0,0.53663784]
[1733888072260,0.00054971,97327.0,97326.0,0.63287958]
[1733888072590,0.00054971,97327.0,97326.0,0.6328468]
[1733888072819,0.00054971,97327.0,97326.0,0.54063784]
[1733888073113,0.00054971,97327.0,97326.0,0.54263784]
[1733888073316,0.00054971,97327.0,97326.0,0.53863784]
[1733888073471,0.00054971,97327.0,97326.0,0.53663784]
[1733888073692,0.00154971,97327.0,97326.0,0.54463784]
[1733888073897,0.00154971,97327.0,97326.0,0.54363784]
[1733888074818,0.00254971,97327.0,97326.0,0.55263784]
[1733888075315,0.00254971,97327.0,97326.0,0.89291256]
[1733888075572,0.00254971,97327.0,97326.0,1.04291256]
[1733888075832,0.0001714,97330.0,97329.0,0.4602126]
[1733888076038,0.0001716,97340.0,97339.0,0.7423796]
[1733888076269,0.0001716,97340.0,97339.0,1.18797956]
[1733888076505,0.0001716,97340.0,97339.0,1.21097956]
[1733888076763,0.0001716,97370.0,97349.0,0.5156586]
[1733888076989,0.0001716,97370.0,97349.0,0.98414258]
[1733888077566,0.0001716,97370.0,97349.0,0.98414248]
[1733888077787,0.0001716,97370.0,97349.0,0.89208384]
[1733888077945,0.0001716,97370.0,97349.0,0.74208384]
[1733888078166,0.205405,97369.0,97349.0,0.44208384]
[1733888078323,0.205405,97369.0,97349.0,0.59208384]
[1733888078546,0.0011716,97350.0,97349.0,0.60108384]
[1733888079304,0.0011716,97350.0,97349.0,0.75108384]
[1733888079860,0.0011716,97350.0,97349.0,0.75608384]
[1733888083536,0.0011716,97350.0,97349.0,0.45608384]
[1733888084980,0.0011716,97350.0,97349.0,0.60608384]
[1733888086190,0.0011716,97350.0,97349.0,0.75608384]
[1733888087772,0.0011716,97350.0,97349.0,0.90608384]
[1733888088614,0.0011716,97350.0,97349.0,0.9140944]
[1733888088809,0.0011716,97350.0,97349.0,0.9090944]
[1733888091344,0.0011716,97350.0,97349.0,0.9180944]
[1733888097687,6e-07,97350.0,97349.0,0.9180944]
[1733888097888,0.205332,97403.0,97402.0,0.0102126]
[1733888098517,0.20531,97414.0,97407.0,0.0102126]
[1733888098827,0.205303,97417.0,97407.0,0.0102126]
[1733888099033,0.205319,97410.0,97407.0,0.0102126]
[1733888099275,0.410638,97410.0,97407.0,0.0102126]
[1733888100151,0.412638,97410.0,97407.0,0.0102126]
[1733888100803,0.410638,97410.0,97407.0,0.0102126]
[1733888101507,0.205319,97410.0,97407.0,0.0102126]
[1733888101772,0.077,97411.0,97408.0,0.0102126]
[1733888101929,0.205306,97416.0,97410.0,0.0102126]
[1733888102128,0.00016504,97417.0,97416.0,0.0102126]
[1733888103216,0.00823167,97417.0,97416.0,0.0102126]
[1733888104573,0.00016504,97417.0,97416.0,0.0102126]
[1733888105954,0.00016504,97417.0,97416.0,0.11853784]
[1733888106152,0.00016504,97417.0,97416.0,0.11953784]
[1733888106894,0.00016504,97417.0,97416.0,0.11853784]
[1733888107304,0.00016504,97417.0,97416.0,0.11953784]
[1733888107648,0.00016504,97417.0,97416.0,0.11653784]
[1733888107987,0.00016504,97417.0,97416.0,0.11953784]
[1733888108384,0.00016504,97417.0,97416.0,0.11653784]
[1733888108749,0.00016504,97417.0,97416.0,0.12353784]
[1733888109249,0.00016504,97417.0,97416.0,0.12753784]
[1733888109570,0.00016504,97417.0,97416.0,0.12353784]
[1733888109917,0.00016504,97417.0,97416.0,0.12753784]
[1733888115050,0.00016504,97417.0,97416.0,0.20523784]
[1733888120379,0.0001716,97440.0,97437.0,0.2931726]
[1733888120580,0.01555062,97438.0,97437.0,0.44589784]
[1733888120819,0.01555062,97438.0,97437.0,0.59589784]
[1733888121982,0.01555062,97438.0,97437.0,0.60489784]
[1733888123669,0.01555062,97438.0,97437.0,0.60989784]
[1733888125606,0.01555062,97438.0,97437.0,0.25463784]
[1733888125844,0.01555062,97438.0,97437.0,0.45989784]
[1733888128558,0.01555062,97438.0,97437.0,0.60989784]
[1733888129398,0.01555062,97438.0,97437.0,0.90989784]
[1733888130235,0.0001716,97440.0,97439.0,0.3102126]
[1733888130441,0.0001716,97440.0,97439.0,0.68803784]
[1733888130860,6e-07,97440.0,97439.0,0.71103784]
[1733888131055,0.0004,97449.0,97448.0,0.5154496]
[1733888131263,0.0004,97449.0,97448.0,0.91627484]
[1733888131463,7e-07,97450.0,97449.0,0.4832126]
[1733888131662,7e-07,97450.0,97449.0,0.71103784]
[1733888133197,7e-07,97450.0,97449.0,0.52782524]
[1733888133412,7e-07,97450.0,97449.0,0.68803784]
[1733888133810,7e-07,97450.0,97449.0,0.69703784]
[1733888134887,7e-07,97450.0,97449.0,0.68803784]
[1733888135018,7e-07,97450.0,97449.0,0.69703784]
[1733888135550,7e-07,97450.0,97449.0,0.68803784]
[1733888135734,7e-07,97450.0,97449.0,0.70503784]
[1733888135941,7e-07,97450.0,97449.0,0.69603784]
[1733888136118,7e-07,97450.0,97449.0,0.70464596]
[1733888136329,7e-07,97450.0,97449.0,0.53803784]
[1733888136607,7e-07,97450.0,97449.0,0.11553784]
[1733888136771,7e-07,97450.0,97449.0,0.12253784]
[1733888137188,7e-07,97450.0,97449.0,0.11553784]
[1733888137584,7e-07,97450.0,97449.0,0.12253784]
[1733888137935,7e-07,97450.0,97449.0,0.13153784]
[1733888138400,7e-07,97450.0,97449.0,0.12253784]
[1733888138532,7e-07,97450.0,97449.0,0.13153784]
[1733888138917,7e-07,97450.0,97449.0,0.12253784]
[1733888139381,7e-07,97450.0,97449.0,0.12353784]
[1733888139779,7e-07,97450.0,97449.0,0.11553784]
[1733888139988,7e-07,97450.0,97449.0,0.11953784]
[1733888140535,7e-07,97450.0,97449.0,0.11553784]
[1733888140667,7e-07,97450.0,97449.0,0.11853784]
[1733888141147,7e-07,97450.0,97449.0,0.008]
[1733888141337,7e-07,97450.0,97449.0,0.0102126]
[1733888141837,7e-07,97450.0,97449.0,0.0182126]
[1733888141838,0.2052347,97450.0,97449.0,0.0182126]
[1733888142039,0.2052347,97450.0,97449.0,0.0102126]
[1733888142257,0.2052347,97450.0,97430.0,0.0001712]
[1733888142392,0.205254,97441.0,97440.0,0.0102126]
[1733888143352,0.205254,97440.0,97430.0,0.0001712]
[1733888143719,0.410508,97440.0,97430.0,0.0001712]
[1733888144814,0.205254,97440.0,97439.0,0.0102126]
[1733888145251,7e-07,97450.0,97449.0,0.0102126]
[1733888145915,0.00856165,97450.0,97449.0,0.0102126]
[1733888146195,7e-07,97450.0,97449.0,0.0102126]
[1733888147341,7e-07,97450.0,97449.0,0.0132126]
[1733888147538,7e-07,97450.0,97449.0,0.0152126]
[1733888147864,7e-07,97450.0,97449.0,0.0102126]
[1733888148069,7e-07,97450.0,97449.0,0.0192126]
[1733888148450,7e-07,97450.0,97449.0,0.0102126]
[1733888148770,7e-07,97450.0,97449.0,0.0162126]
[1733888149349,7e-07,97450.0,97449.0,0.0192126]
[1733888149941,7e-07,97450.0,97449.0,0.0162126]
[1733888150144,7e-07,97450.0,97449.0,0.0202126]
[1733888150736,7e-07,97450.0,97449.0,0.0142126]
[1733888150848,7e-07,97450.0,97449.0,0.0222126]
[1733888151616,7e-07,97450.0,97449.0,0.0142126]
[1733888152018,7e-07,97450.0,97449.0,0.0212126]
[1733888152389,7e-07,97450.0,97449.0,0.0172126]
[1733888153011,7e-07,97450.0,97449.0,0.0202126]
[1733888155032,7e-07,97450.0,97449.0,0.12553784]
[1733888155230,7e-07,97450.0,97449.0,0.20083784]
[1733888155415,7e-07,97450.0,97449.0,0.19383784]
[1733888155606,7e-07,97450.0,97449.0,0.20183784]
[1733888156235,7e-07,97450.0,97449.0,0.19883784]
[1733888156640,7e-07,97450.0,97449.0,0.20283784]
[1733888156765,7e-07,97450.0,97449.0,0.19483784]
[1733888156970,7e-07,97450.0,97449.0,0.19883784]
[1733888157375,7e-07,97450.0,97449.0,0.19483784]
[1733888157576,7e-07,97450.0,97449.0,0.11953784]
[1733888157771,7e-07,97450.0,97449.0,0.12853784]
[1733888159896,7e-07,97450.0,97449.0,0.0232126]
[1733888160965,7e-07,97450.0,97449.0,0.0142126]
[1733888161138,7e-07,97450.0,97449.0,0.0102126]
[1733888161343,7e-07,97450.0,97449.0,0.0232126]
[1733888161564,7e-07,97450.0,97449.0,0.0142126]
[1733888161979,7e-07,97450.0,97449.0,0.0232126]
[1733888162930,7e-07,97450.0,97449.0,0.0192126]
[1733888163144,7e-07,97450.0,97449.0,0.0102126]
[1733888163555,7e-07,97450.0,97449.0,0.0212126]
[1733888163958,7e-07,97450.0,97449.0,0.011]
[1733888164116,7e-07,97450.0,97449.0,0.007]
[1733888164323,0.00852662,97450.0,97449.0,0.002]
[1733888164749,7e-07,97450.0,97449.0,0.006]
[1733888165071,7e-07,97450.0,97449.0,0.002]
[1733888165400,0.205235,97449.0,97448.0,0.0102126]
[1733888167395,7e-07,97450.0,97448.0,0.0102126]
[1733888167609,7e-07,97450.0,97449.0,0.0102126]
[1733888170213,7e-07,97450.0,97449.0,0.0142126]
[1733888170452,7e-07,97450.0,97449.0,0.0162126]
[1733888173035,7e-07,97450.0,97449.0,0.002]
[1733888173225,0.41047,97449.0,97447.0,0.0102126]
[1733888173891,0.41047,97449.0,97441.0,0.0102126]
[1733888173892,0.20525,97442.0,97441.0,0.0102126]
[1733888176030,0.20525,97442.0,97440.0,0.0001712]
[1733888176667,0.20525,97442.0,97441.0,0.001]
[1733888176867,0.20525,97442.0,97441.0,0.004]
[1733888176997,0.20525,97442.0,97440.0,0.0001712]
[1733888177205,0.20525,97442.0,97441.0,0.0102126]
[1733888177206,0.21398617,97442.0,97441.0,0.0102126]
[1733888177415,0.21398617,97442.0,97440.0,0.0001712]
[1733888177615,0.00873617,97442.0,97441.0,0.0102126]
[1733888177867,0.205237,97448.0,97447.0,0.0102126]
[1733888178689,7e-07,97450.0,97449.0,0.0102126]
[1733888179273,0.00867863,97450.0,97449.0,0.0102126]
[1733888179450,7e-07,97450.0,97449.0,0.0102126]
[1733888180308,7e-07,97450.0,97449.0,0.0122126]
[1733888180537,7e-07,97450.0,97449.0,0.0102126]
[1733888182148,7e-07,97450.0,97449.0,0.11553784]
[1733888182782,7e-07,97450.0,97449.0,0.19873784]
[1733888183145,7e-07,97450.0,97449.0,0.20273784]
[1733888183320,7e-07,97450.0,97449.0,0.19873784]
[1733888183724,7e-07,97450.0,97449.0,0.20073784]
[1733888184180,7e-07,97450.0,97449.0,0.20273784]
[1733888184611,7e-07,97450.0,97449.0,0.20473784]
[1733888185579,7e-07,97450.0,97449.0,0.20073784]
[1733888185739,7e-07,97450.0,97449.0,0.19873784]
[1733888185938,7e-07,97450.0,97449.0,0.20373784]
[1733888186309,7e-07,97450.0,97449.0,0.20073784]
[1733888186685,7e-07,97450.0,97449.0,0.20773784]
[1733888186893,7e-07,97450.0,97449.0,0.20473784]
[1733888187498,7e-07,97450.0,97449.0,0.19873784]
[1733888187819,7e-07,97450.0,97449.0,0.21073784]
[1733888188059,7e-07,97450.0,97449.0,0.66073784]
[1733888188276,7e-07,97450.0,97449.0,1.04425657]
[1733888189091,7e-07,97450.0,97449.0,1.03225657]
[1733888189310,7e-07,97450.0,97449.0,1.04325657]
[1733888189494,7e-07,97450.0,97449.0,1.03607833]
[1733888189629,7e-07,97450.0,97449.0,1.26083979]
[1733888189841,7e-07,97450.0,97449.0,1.04107833]
[1733888190032,0.0004,97469.0,97459.0,0.6654266]
[1733888190225,0.0004,97469.0,97459.0,1.23879233]
[1733888191518,0.0004,97469.0,97459.0,1.03808355]
[1733888191715,0.0004,97469.0,97459.0,0.90095184]
[1733888192331,0.0004,97469.0,97459.0,1.03808355]
[1733888192529,0.0004,97469.0,97459.0,0.90795184]
[1733888192702,0.0004,97469.0,97459.0,1.25434514]
[1733888193268,0.0004,97469.0,97459.0,1.43714533]
[1733888193894,0.0004,97469.0,97459.0,1.24734514]
[1733888194082,0.0004,97469.0,97459.0,1.24724442]
[1733888194262,0.0004,97469.0,97459.0,1.04701424]
[1733888194449,0.0004,97469.0,97459.0,0.90995184]
[1733888194839,0.0004,97469.0,97459.0,1.04701424]
[1733888195199,0.0004,97469.0,97459.0,1.05583439]
[1733888195436,0.0004,97469.0,97459.0,1.01009816]
[1733888195604,0.0004,97469.0,97459.0,0.91877199]
[1733888196064,0.0004,97469.0,97459.0,1.01009775]
[1733888196214,0.0004,97469.0,97459.0,1.01909775]
[1733888196414,0.0004,97469.0,97459.0,0.92777199]
[1733888198239,0.0004,97469.0,97459.0,0.46895184]
[1733888199467,0.0004,97469.0,97459.0,0.45995184]
[1733888199656,0.0004,97469.0,97459.0,0.45095184]
[1733888199882,0.0004,97469.0,97459.0,0.45995184]
[1733888200099,0.0004,97469.0,97459.0,0.45795184]
[1733888200476,0.0004,97469.0,97459.0,0.46695184]
[1733888202233,0.0004,97469.0,97459.0,0.45995184]
[1733888202445,0.0004,97469.0,97459.0,0.46695184]
[1733888202859,0.0004,97469.0,97459.0,0.33675184]
[1733888203129,0.0829,97468.0,97459.0,0.33675184]
[1733888203782,0.0004,97469.0,97459.0,0.32075184]
[1733888204168,0.0004,97469.0,97459.0,0.29767484]
[1733888204563,0.0004,97469.0,97459.0,0.30367484]
[1733888205403,0.0004,97469.0,97459.0,0.29767484]
[1733888205662,0.0004,97469.0,97459.0,0.28746224]
[1733888205877,0.0004,97469.0,97459.0,0.30267484]
[1733888206108,0.0004,97469.0,97459.0,0.29767484]
[1733888206338,0.0004,97469.0,97459.0,0.30567484]
[1733888206584,0.0004,97469.0,97459.0,0.30967484]
[1733888207520,0.0004,97469.0,97459.0,0.12753784]
[1733888210805,0.00906848,97465.0,97459.0,0.12753784]
[1733888213494,0.00906848,97465.0,97459.0,0.0222126]
[1733888216182,0.0004,97469.0,97459.0,0.17503784]
[1733888216398,0.0004,97469.0,97459.0,0.25743784]
[1733888217026,0.0004,97469.0,97459.0,0.70743784]
[1733888218087,0.0004,97469.0,97459.0,0.69943784]
[1733888218488,0.0004,97469.0,97459.0,0.70443784]
[1733888218869,0.0004,97469.0,97459.0,0.71143784]
[1733888219195,0.0004,97469.0,97459.0,0.70243784]
[1733888219536,0.0004,97469.0,97459.0,0.70443784]
[1733888219769,0.0004,97469.0,97459.0,0.71143784]
[1733888220005,0.0004,97469.0,97459.0,0.70243784]
[1733888220219,0.0004,97469.0,97459.0,0.71143784]
[1733888225814,0.0004,97469.0,97459.0,0.80298111]
[1733888226266,0.0004,97469.0,97459.0,1.04933898]
[1733888226419,0.0004,97469.0,97459.0,1.23210898]
[1733888226616,0.0004,97469.0,97459.0,1.04933898]
[1733888226822,0.0004,97469.0,97459.0,1.23210898]
[1733888227570,0.0004,97469.0,97459.0,1.23254974]
[1733888228805,0.0004,97469.0,97459.0,1.04933898]
[1733888229287,0.0004,97469.0,97459.0,1.23252874]
[1733888229475,0.0004,97469.0,97459.0,1.23251205]
[1733888229646,0.0004,97469.0,97459.0,1.04933898]
[1733888230034,0.0004,97469.0,97459.0,1.27780148]
[1733888230258,0.0004,97469.0,97459.0,1.04933898]
[1733888230372,0.0004,97469.0,97459.0,1.27780148]
[1733888230583,0.0004,97469.0,97459.0,1.04933898]
[1733888230837,0.0004,97469.0,97459.0,1.04948041]
[1733888235413,0.0004,97469.0,97459.0,0.12453784]
[1733888235576,0.0004,97469.0,97459.0,0.11553784]
[1733888235769,0.0004,97469.0,97459.0,0.13153784]
[1733888235770,0.205198,97467.0,97459.0,0.13153784]
[1733888235931,0.0004,97469.0,97459.0,0.13153784]
[1733888236154,0.00910796,97469.0,97459.0,0.11232524]
[1733888236488,0.00910796,97469.0,97459.0,0.12132524]
[1733888236695,0.205198,97467.0,97459.0,0.12253784]
[1733888237424,0.205198,97467.0,97459.0,0.11553784]
[1733888237549,0.205198,97467.0,97459.0,0.11753784]
[1733888237944,0.205198,97467.0,97459.0,0.11553784]
[1733888238197,0.205207,97463.0,97459.0,0.12353784]
[1733888238377,0.205207,97463.0,97459.0,0.10932524]
[1733888238591,0.205207,97463.0,97459.0,0.11953784]
[1733888238756,0.205198,97467.0,97459.0,0.12153784]
[1733888239305,0.205198,97467.0,97459.0,0.11132524]
[1733888239578,0.205207,97463.0,97459.0,0.0192126]
[1733888239870,0.205198,97467.0,97459.0,0.0192126]
[1733888240326,0.205206,97463.0,97459.0,0.0192126]
[1733888241354,0.205206,97463.0,97459.0,0.009]
[1733888242814,0.205206,97463.0,97459.0,0.0192126]
[1733888243354,0.205198,97467.0,97459.0,0.0192126]
[1733888247135,0.205208,97462.0,97459.0,0.0192126]
[1733888248102,0.205198,97467.0,97459.0,0.0192126]
[1733888248301,0.205198,97467.0,97459.0,0.0162126]
[1733888248508,0.205198,97467.0,97459.0,0.0102126]
[1733888248712,0.205198,97467.0,97459.0,0.0112126]
[1733888248982,0.205198,97467.0,97459.0,0.0152126]
[1733888249222,0.205198,97467.0,97459.0,0.0112126]
[1733888249426,0.205198,97467.0,97459.0,0.0132126]
[1733888249870,0.205207,97463.0,97459.0,0.0132126]
[1733888250108,0.205207,97463.0,97459.0,0.0122126]
[1733888250242,0.205208,97462.0,97459.0,0.0122126]
[1733888250442,0.205208,97462.0,97459.0,0.0132126]
[1733888250985,0.205208,97462.0,97459.0,0.0122126]
[1733888251573,0.205208,97462.0,97459.0,0.0152126]
[1733888251903,0.205208,97462.0,97459.0,0.0132126]
[1733888252137,0.205198,97467.0,97459.0,0.0142126]
[1733888252413,0.205198,97467.0,97459.0,0.0112126]
[1733888252674,0.205198,97467.0,97459.0,0.0152126]
[1733888252874,0.205198,97467.0,97459.0,0.0112126]
[1733888253298,0.205198,97467.0,97459.0,0.0102126]
[1733888253762,0.205198,97467.0,97459.0,0.0122126]
[1733888254103,0.205198,97467.0,97459.0,0.0102126]
[1733888254461,0.205198,97467.0,97459.0,0.0162126]
[1733888254659,0.205198,97467.0,97459.0,0.0122126]
[1733888254882,0.205198,97467.0,97459.0,0.0102126]
[1733888255162,0.205198,97467.0,97459.0,0.0152126]
[1733888255403,0.205198,97467.0,97459.0,0.0122126]
[1733888255767,0.205198,97467.0,97459.0,0.0182126]
[1733888256431,0.205198,97467.0,97459.0,0.0162126]
[1733888256776,0.205198,97467.0,97459.0,0.0192126]
[1733888257641,0.205208,97462.0,97459.0,0.0192126]
[1733888257814,0.205208,97462.0,97459.0,0.0102126]
[1733888258219,0.205208,97462.0,97459.0,0.0192126]
[1733888258421,0.205208,97462.0,97459.0,0.0132126]
[1733888258829,0.205198,97467.0,97459.0,0.0132126]
[1733888258830,0.205198,97467.0,97459.0,0.0192126]
[1733888259631,0.205198,97467.0,97459.0,0.0162126]
[1733888260095,0.205206,97463.0,97459.0,0.0192126]
[1733888262074,0.205206,97463.0,97459.0,0.0132126]
[1733888262501,0.205206,97463.0,97459.0,0.0192126]
[1733888262703,0.410413,97463.0,97459.0,0.0192126]
[1733888263200,0.410413,97463.0,97459.0,0.0162126]
[1733888263410,0.0004,97469.0,97459.0,0.12453784]
[1733888263634,0.0004,97469.0,97459.0,0.17103784]
[1733888263856,0.0004,97469.0,97459.0,0.5630825]
[1733888264064,0.0004,97469.0,97459.0,0.89821567]
[1733888264262,0.0004,97469.0,97459.0,0.89221567]
[1733888264640,0.0004,97469.0,97459.0,1.08153792]
[1733888264822,0.0004,97469.0,97459.0,1.07853792]
[1733888265274,0.0004,97469.0,97459.0,0.90418569]
[1733888265826,0.0004,97469.0,97459.0,1.08736964]
[1733888266228,0.0004,97469.0,97459.0,0.90118569]
[1733888266648,0.0004,97469.0,97459.0,0.90818569]
[1733888269115,0.0004,97469.0,97459.0,0.89918569]
[1733888269313,0.0004,97469.0,97459.0,0.90118569]
[1733888269539,0.0004,97469.0,97459.0,0.90094928]
[1733888269684,0.0004,97469.0,97459.0,0.90794928]
[1733888270127,0.0004,97469.0,97459.0,0.90094928]
[1733888270500,0.0004,97469.0,97459.0,0.89994928]
[1733888270906,0.0004,97469.0,97459.0,0.90894928]
[1733888271105,0.0004,97469.0,97459.0,0.89994928]
[1733888271544,0.0004,97469.0,97459.0,0.90894928]
[1733888273135,0.0004,97469.0,97459.0,0.90891785]
[1733888273955,0.0004,97469.0,97459.0,0.89974114]
[1733888274743,0.0004,97469.0,97459.0,1.08276717]
[1733888275901,0.0004,97469.0,97459.0,0.95336717]
[1733888276112,0.0004,97469.0,97459.0,0.56981177]
[1733888276292,0.0004,97469.0,97459.0,0.61556387]
[1733888276517,0.0004,97469.0,97459.0,0.56981561]
[1733888276761,0.0004,97469.0,97459.0,0.43253784]
[1733888277101,0.0004,97469.0,97459.0,0.56981561]
[1733888277277,0.0004,97469.0,97459.0,0.43253784]
[1733888277925,0.0004,97469.0,97459.0,0.77037325]
[1733888278124,0.0004,97469.0,97459.0,0.52406118]
[1733888278272,0.0004,97469.0,97459.0,0.43253784]
[1733888278471,0.0004,97469.0,97459.0,0.52407171]
[1733888278766,0.0004,97469.0,97459.0,0.43253784]
[1733888281623,0.0004,97469.0,97459.0,0.017]
[1733888281624,0.205208,97462.0,97459.0,0.017]
[1733888282329,0.205208,97462.0,97459.0,0.009]
[1733888282894,0.205208,97462.0,97459.0,0.012]
[1733888283320,0.205208,97462.0,97459.0,0.003]
[1733888283564,0.08687389,97465.0,97450.0,8.58e-05]
[1733888283754,0.08687389,97465.0,97459.0,0.007]
[1733888283997,0.205231,97451.0,97450.0,8.58e-05]
[1733888285187,0.282831,97451.0,97450.0,8.58e-05]
[1733888286563,0.0776,97459.0,97450.0,0.0132984]
[1733888286759,8.59e-05,97460.0,97457.0,0.410436]
[1733888287146,8.59e-05,97460.0,97459.0,0.0102126]
[1733888288306,0.0010859,97460.0,97459.0,0.0102126]
[1733888288503,0.205223,97455.0,97453.0,0.0102126]
[1733888289993,0.205227,97453.0,97450.0,8.58e-05]
[1733888290398,0.410454,97453.0,97450.0,8.58e-05]
[1733888291207,0.410454,97453.0,97450.0,0.0020858]
[1733888291404,0.410454,97453.0,97450.0,8.58e-05]
[1733888296325,0.411454,97453.0,97450.0,8.58e-05]
[1733888296591,0.412454,97453.0,97450.0,8.58e-05]
[1733888298378,0.205231,97451.0,97450.0,8.58e-05]
[1733888299835,0.207231,97451.0,97450.0,8.58e-05]
[1733888307189,0.230231,97451.0,97450.0,8.58e-05]
[1733888307432,0.24896494,97451.0,97450.0,8.58e-05]
[1733888310955,0.2490164,97451.0,97450.0,8.58e-05]
[1733888311156,0.2260164,97451.0,97450.0,8.58e-05]
[1733888311409,0.207231,97451.0,97450.0,8.58e-05]
[1733888311664,0.22602716,97451.0,97450.0,8.58e-05]
[1733888314245,0.207231,97451.0,97450.0,8.58e-05]
[1733888317980,0.002,97451.0,97450.0,8.58e-05]
[1733888318154,0.002,97451.0,97450.0,0.0102984]
[1733888318369,0.002,97451.0,97450.0,0.11562364]
[1733888318590,0.002,97451.0,97450.0,0.19082364]